{"text_format":"1","workbook":"xlsx","n_sheets":4,"sheets":["Item","Sheet1","Sheet2","Data"],"not_rendered":{"charts":0,"images":0,"macros":1,"external_links":0,"defined_names":1,"comments":0,"pivot_tables":0},"unopened":[],"bounds":{"document_bytes":16777216,"sheet_cells":100000,"rows_first":2000,"rows_last":500,"rows_between":2000,"halvings":0,"cell_chars":16384,"cell_head_chars":4096},"cells_cut":0,"cells_raw":0,"read":"whole","date_system":"1900"}

{"sheet":"Item","index":0,"n_rows":10,"n_cols":10,"rows_kept":10,"cut":false,"hidden":false,"merged":[]}
["Name","Type","Description","Cname","Ctype","Cdefault","Cdescription","Json Schema"]
["attack","Decimal","0.3","Amount of exhaustion applied when attacking.",{"$f":"SUBSTITUTE(SUBSTITUTE(LOWER(Table13[[#This Row],[Type]]),\"decimal\", \"number\"), \"list\", \"array\")","v":"number"},{"$f":"IF(Table13[[#This Row],[Ctype]]=\"string\", CHAR(34) &#REF! & CHAR(34), LOWER(#REF!))","v":{"$error":"#REF!"}},{"$f":"SUBSTITUTE(Table13[[#This Row],[Description]], CHAR(34), \"\\\" & CHAR(34))","v":"0.3"},{"$f":"SUBSTITUTE(SUBSTITUTE(SUBSTITUTE(SUBSTITUTE(SUBSTITUTE(Template, \"$NAME$\", Table13[[#This Row],[Cname]]), \"$TYPE$\", Table13[[#This Row],[Ctype]]), \"$DESCRIPTION$\", Table13[[#This Row],[Cdescription]]), \"$VALUE$\",\"\"), \"$TITLE$\", SUBSTITUTE(Table13[[#This Row],[Name]],\"_\", \" \"))","v":"    \"Amount of exhaustion applied when attacking.\": {\n      \"title\": \"attack\",\n      \"type\": \"number\",\n      \"default\": ,\n      \"description\": \"0.3\"\n    },"},null,{"$f":"_xlfn.CONCAT(Table13[Json Schema])","v":"    \"Amount of exhaustion applied when attacking.\": {\n      \"title\": \"attack\",\n      \"type\": \"number\",\n      \"default\": ,\n      \"description\": \"0.3\"\n    },    \"Amount of exhaustion applied when taking damage.\": {\n      \"title\": \"damage\",\n      \"type\": \"number\",\n      \"default\": ,\n      \"description\": \"0.1\"\n    },    \"Amount of exhaustion applied when healed through food regeneration.\": {\n      \"title\": \"heal\",\n      \"type\": \"number\",\n      \"default\": ,\n      \"description\": \"3\"\n    },    \"Amount of exhaustion applied when jumping.\": {\n      \"title\": \"jump\",\n      \"type\": \"number\",\n      \"default\": ,\n      \"description\": \"0.2\"\n    },    \"Amount of exhaustion applied when mining.\": {\n      \"title\": \"mine\",\n      \"type\": \"number\",\n      \"default\": ,\n      \"description\": \"0.025\"\n    },    \"Amount of exhaustion applied when sprinting.\": {\n      \"title\": \"sprint\",\n      \"type\": \"number\",\n      \"default\": ,\n      \"description\": \"0.01\"\n    },    \"Amount of exhaustion applied when sprint jumping.\": {\n      \"title\": \"sprint jump\",\n      \"type\": \"number\",\n      \"default\": ,\n      \"description\": \"0.8\"\n    },    \"Amount of exhaustion applied when swimming.\": {\n      \"title\": \"swim\",\n      \"type\": \"number\",\n      \"default\": ,\n      \"description\": \"0.015\"\n    },    \"Amount of exhaustion applied when walking.\": {\n      \"title\": \"walk\",\n      \"type\": \"number\",\n      \"default\": ,\n      \"description\": \"0.01\"\n    },"}]
["damage","Decimal","0.1","Amount of exhaustion applied when taking damage.",{"$f":"SUBSTITUTE(SUBSTITUTE(LOWER(Table13[[#This Row],[Type]]),\"decimal\", \"number\"), \"list\", \"array\")","v":"number"},{"$f":"IF(Table13[[#This Row],[Ctype]]=\"string\", CHAR(34) &#REF! & CHAR(34), LOWER(#REF!))","v":{"$error":"#REF!"}},{"$f":"SUBSTITUTE(Table13[[#This Row],[Description]], CHAR(34), \"\\\" & CHAR(34))","v":"0.1"},{"$f":"SUBSTITUTE(SUBSTITUTE(SUBSTITUTE(SUBSTITUTE(SUBSTITUTE(Template, \"$NAME$\", Table13[[#This Row],[Cname]]), \"$TYPE$\", Table13[[#This Row],[Ctype]]), \"$DESCRIPTION$\", Table13[[#This Row],[Cdescription]]), \"$VALUE$\",\"\"), \"$TITLE$\", SUBSTITUTE(Table13[[#This Row],[Name]],\"_\", \" \"))","v":"    \"Amount of exhaustion applied when taking damage.\": {\n      \"title\": \"damage\",\n      \"type\": \"number\",\n      \"default\": ,\n      \"description\": \"0.1\"\n    },"}]
["heal","Decimal",3,"Amount of exhaustion applied when healed through food regeneration.",{"$f":"SUBSTITUTE(SUBSTITUTE(LOWER(Table13[[#This Row],[Type]]),\"decimal\", \"number\"), \"list\", \"array\")","v":"number"},{"$f":"IF(Table13[[#This Row],[Ctype]]=\"string\", CHAR(34) &#REF! & CHAR(34), LOWER(#REF!))","v":{"$error":"#REF!"}},{"$f":"SUBSTITUTE(Table13[[#This Row],[Description]], CHAR(34), \"\\\" & CHAR(34))","v":"3"},{"$f":"SUBSTITUTE(SUBSTITUTE(SUBSTITUTE(SUBSTITUTE(SUBSTITUTE(Template, \"$NAME$\", Table13[[#This Row],[Cname]]), \"$TYPE$\", Table13[[#This Row],[Ctype]]), \"$DESCRIPTION$\", Table13[[#This Row],[Cdescription]]), \"$VALUE$\",\"\"), \"$TITLE$\", SUBSTITUTE(Table13[[#This Row],[Name]],\"_\", \" \"))","v":"    \"Amount of exhaustion applied when healed through food regeneration.\": {\n      \"title\": \"heal\",\n      \"type\": \"number\",\n      \"default\": ,\n      \"description\": \"3\"\n    },"}]
["jump","Decimal","0.2","Amount of exhaustion applied when jumping.",{"$f":"SUBSTITUTE(SUBSTITUTE(LOWER(Table13[[#This Row],[Type]]),\"decimal\", \"number\"), \"list\", \"array\")","v":"number"},{"$f":"IF(Table13[[#This Row],[Ctype]]=\"string\", CHAR(34) &#REF! & CHAR(34), LOWER(#REF!))","v":{"$error":"#REF!"}},{"$f":"SUBSTITUTE(Table13[[#This Row],[Description]], CHAR(34), \"\\\" & CHAR(34))","v":"0.2"},{"$f":"SUBSTITUTE(SUBSTITUTE(SUBSTITUTE(SUBSTITUTE(SUBSTITUTE(Template, \"$NAME$\", Table13[[#This Row],[Cname]]), \"$TYPE$\", Table13[[#This Row],[Ctype]]), \"$DESCRIPTION$\", Table13[[#This Row],[Cdescription]]), \"$VALUE$\",\"\"), \"$TITLE$\", SUBSTITUTE(Table13[[#This Row],[Name]],\"_\", \" \"))","v":"    \"Amount of exhaustion applied when jumping.\": {\n      \"title\": \"jump\",\n      \"type\": \"number\",\n      \"default\": ,\n      \"description\": \"0.2\"\n    },"}]
["mine","Decimal","0.025","Amount of exhaustion applied when mining.",{"$f":"SUBSTITUTE(SUBSTITUTE(LOWER(Table13[[#This Row],[Type]]),\"decimal\", \"number\"), \"list\", \"array\")","v":"number"},{"$f":"IF(Table13[[#This Row],[Ctype]]=\"string\", CHAR(34) &#REF! & CHAR(34), LOWER(#REF!))","v":{"$error":"#REF!"}},{"$f":"SUBSTITUTE(Table13[[#This Row],[Description]], CHAR(34), \"\\\" & CHAR(34))","v":"0.025"},{"$f":"SUBSTITUTE(SUBSTITUTE(SUBSTITUTE(SUBSTITUTE(SUBSTITUTE(Template, \"$NAME$\", Table13[[#This Row],[Cname]]), \"$TYPE$\", Table13[[#This Row],[Ctype]]), \"$DESCRIPTION$\", Table13[[#This Row],[Cdescription]]), \"$VALUE$\",\"\"), \"$TITLE$\", SUBSTITUTE(Table13[[#This Row],[Name]],\"_\", \" \"))","v":"    \"Amount of exhaustion applied when mining.\": {\n      \"title\": \"mine\",\n      \"type\": \"number\",\n      \"default\": ,\n      \"description\": \"0.025\"\n    },"}]
["sprint","Decimal","0.01","Amount of exhaustion applied when sprinting.",{"$f":"SUBSTITUTE(SUBSTITUTE(LOWER(Table13[[#This Row],[Type]]),\"decimal\", \"number\"), \"list\", \"array\")","v":"number"},{"$f":"IF(Table13[[#This Row],[Ctype]]=\"string\", CHAR(34) &#REF! & CHAR(34), LOWER(#REF!))","v":{"$error":"#REF!"}},{"$f":"SUBSTITUTE(Table13[[#This Row],[Description]], CHAR(34), \"\\\" & CHAR(34))","v":"0.01"},{"$f":"SUBSTITUTE(SUBSTITUTE(SUBSTITUTE(SUBSTITUTE(SUBSTITUTE(Template, \"$NAME$\", Table13[[#This Row],[Cname]]), \"$TYPE$\", Table13[[#This Row],[Ctype]]), \"$DESCRIPTION$\", Table13[[#This Row],[Cdescription]]), \"$VALUE$\",\"\"), \"$TITLE$\", SUBSTITUTE(Table13[[#This Row],[Name]],\"_\", \" \"))","v":"    \"Amount of exhaustion applied when sprinting.\": {\n      \"title\": \"sprint\",\n      \"type\": \"number\",\n      \"default\": ,\n      \"description\": \"0.01\"\n    },"}]
["sprint_jump","Decimal","0.8","Amount of exhaustion applied when sprint jumping.",{"$f":"SUBSTITUTE(SUBSTITUTE(LOWER(Table13[[#This Row],[Type]]),\"decimal\", \"number\"), \"list\", \"array\")","v":"number"},{"$f":"IF(Table13[[#This Row],[Ctype]]=\"string\", CHAR(34) &#REF! & CHAR(34), LOWER(#REF!))","v":{"$error":"#REF!"}},{"$f":"SUBSTITUTE(Table13[[#This Row],[Description]], CHAR(34), \"\\\" & CHAR(34))","v":"0.8"},{"$f":"SUBSTITUTE(SUBSTITUTE(SUBSTITUTE(SUBSTITUTE(SUBSTITUTE(Template, \"$NAME$\", Table13[[#This Row],[Cname]]), \"$TYPE$\", Table13[[#This Row],[Ctype]]), \"$DESCRIPTION$\", Table13[[#This Row],[Cdescription]]), \"$VALUE$\",\"\"), \"$TITLE$\", SUBSTITUTE(Table13[[#This Row],[Name]],\"_\", \" \"))","v":"    \"Amount of exhaustion applied when sprint jumping.\": {\n      \"title\": \"sprint jump\",\n      \"type\": \"number\",\n      \"default\": ,\n      \"description\": \"0.8\"\n    },"}]
["swim","Decimal","0.015","Amount of exhaustion applied when swimming.",{"$f":"SUBSTITUTE(SUBSTITUTE(LOWER(Table13[[#This Row],[Type]]),\"decimal\", \"number\"), \"list\", \"array\")","v":"number"},{"$f":"IF(Table13[[#This Row],[Ctype]]=\"string\", CHAR(34) &#REF! & CHAR(34), LOWER(#REF!))","v":{"$error":"#REF!"}},{"$f":"SUBSTITUTE(Table13[[#This Row],[Description]], CHAR(34), \"\\\" & CHAR(34))","v":"0.015"},{"$f":"SUBSTITUTE(SUBSTITUTE(SUBSTITUTE(SUBSTITUTE(SUBSTITUTE(Template, \"$NAME$\", Table13[[#This Row],[Cname]]), \"$TYPE$\", Table13[[#This Row],[Ctype]]), \"$DESCRIPTION$\", Table13[[#This Row],[Cdescription]]), \"$VALUE$\",\"\"), \"$TITLE$\", SUBSTITUTE(Table13[[#This Row],[Name]],\"_\", \" \"))","v":"    \"Amount of exhaustion applied when swimming.\": {\n      \"title\": \"swim\",\n      \"type\": \"number\",\n      \"default\": ,\n      \"description\": \"0.015\"\n    },"}]
["walk","Decimal","0.01","Amount of exhaustion applied when walking.",{"$f":"SUBSTITUTE(SUBSTITUTE(LOWER(Table13[[#This Row],[Type]]),\"decimal\", \"number\"), \"list\", \"array\")","v":"number"},{"$f":"IF(Table13[[#This Row],[Ctype]]=\"string\", CHAR(34) &#REF! & CHAR(34), LOWER(#REF!))","v":{"$error":"#REF!"}},{"$f":"SUBSTITUTE(Table13[[#This Row],[Description]], CHAR(34), \"\\\" & CHAR(34))","v":"0.01"},{"$f":"SUBSTITUTE(SUBSTITUTE(SUBSTITUTE(SUBSTITUTE(SUBSTITUTE(Template, \"$NAME$\", Table13[[#This Row],[Cname]]), \"$TYPE$\", Table13[[#This Row],[Ctype]]), \"$DESCRIPTION$\", Table13[[#This Row],[Cdescription]]), \"$VALUE$\",\"\"), \"$TITLE$\", SUBSTITUTE(Table13[[#This Row],[Name]],\"_\", \" \"))","v":"    \"Amount of exhaustion applied when walking.\": {\n      \"title\": \"walk\",\n      \"type\": \"number\",\n      \"default\": ,\n      \"description\": \"0.01\"\n    },"}]

{"sheet":"Sheet1","index":1,"n_rows":4,"n_cols":11,"rows_kept":4,"cut":false,"hidden":false,"merged":[]}
["Name","Type","Default Value","Description","Cname","Ctype","Cdefault","Cdescription","Json Schema"]
["emit_flap","Boolean",false,"If true, the `flap` game event will be emitted when the entity moves through air.",{"$f":"Table1[[#This Row],[Name]]","v":"emit_flap"},{"$f":"SUBSTITUTE(SUBSTITUTE(LOWER(Table1[[#This Row],[Type]]),\"decimal\", \"number\"), \"list\", \"array\")","v":"boolean"},{"$f":"IF(Table1[[#This Row],[Ctype]]=\"string\", CHAR(34) & Table1[[#This Row],[Default Value]] & CHAR(34), LOWER(Table1[[#This Row],[Default Value]]))","v":"false"},{"$f":"SUBSTITUTE(Table1[[#This Row],[Description]], CHAR(34), \"\\\" & CHAR(34))","v":"If true, the `flap` game event will be emitted when the entity moves through air."},{"$f":"SUBSTITUTE(SUBSTITUTE(SUBSTITUTE(SUBSTITUTE(SUBSTITUTE(Template, \"$NAME$\", Table1[[#This Row],[Cname]]), \"$TYPE$\", Table1[[#This Row],[Ctype]]), \"$DESCRIPTION$\", Table1[[#This Row],[Cdescription]]), \"$VALUE$\",Table1[[#This Row],[Cdefault]]), \"$TITLE$\", SUBSTITUTE(Table1[[#This Row],[Name]],\"_\", \" \"))","v":"    \"emit_flap\": {\n      \"title\": \"emit flap\",\n      \"type\": \"boolean\",\n      \"default\": false,\n      \"description\": \"If true, the `flap` game event will be emitted when the entity moves through air.\"\n    },"},null,{"$f":"_xlfn.CONCAT(Table1[Json Schema])","v":"    \"emit_flap\": {\n      \"title\": \"emit flap\",\n      \"type\": \"boolean\",\n      \"default\": false,\n      \"description\": \"If true, the `flap` game event will be emitted when the entity moves through air.\"\n    },    \"emit_move\": {\n      \"title\": \"emit move\",\n      \"type\": \"boolean\",\n      \"default\": true,\n      \"description\": \"If true, the `entityMove` game event will be emitted when the entity moves on ground or through a solid.\"\n    },    \"emit_swim\": {\n      \"title\": \"emit swim\",\n      \"type\": \"boolean\",\n      \"default\": true,\n      \"description\": \"If true, the `swim` game event will be emitted when the entity moves through a liquid.\"\n    },"}]
["emit_move","Boolean",true,"If true, the `entityMove` game event will be emitted when the entity moves on ground or through a solid.",{"$f":"Table1[[#This Row],[Name]]","v":"emit_move"},{"$f":"SUBSTITUTE(SUBSTITUTE(LOWER(Table1[[#This Row],[Type]]),\"decimal\", \"number\"), \"list\", \"array\")","v":"boolean"},{"$f":"IF(Table1[[#This Row],[Ctype]]=\"string\", CHAR(34) & Table1[[#This Row],[Default Value]] & CHAR(34), LOWER(Table1[[#This Row],[Default Value]]))","v":"true"},{"$f":"SUBSTITUTE(Table1[[#This Row],[Description]], CHAR(34), \"\\\" & CHAR(34))","v":"If true, the `entityMove` game event will be emitted when the entity moves on ground or through a solid."},{"$f":"SUBSTITUTE(SUBSTITUTE(SUBSTITUTE(SUBSTITUTE(SUBSTITUTE(Template, \"$NAME$\", Table1[[#This Row],[Cname]]), \"$TYPE$\", Table1[[#This Row],[Ctype]]), \"$DESCRIPTION$\", Table1[[#This Row],[Cdescription]]), \"$VALUE$\",Table1[[#This Row],[Cdefault]]), \"$TITLE$\", SUBSTITUTE(Table1[[#This Row],[Name]],\"_\", \" \"))","v":"    \"emit_move\": {\n      \"title\": \"emit move\",\n      \"type\": \"boolean\",\n      \"default\": true,\n      \"description\": \"If true, the `entityMove` game event will be emitted when the entity moves on ground or through a solid.\"\n    },"}]
["emit_swim","Boolean",true,"If true, the `swim` game event will be emitted when the entity moves through a liquid.",{"$f":"Table1[[#This Row],[Name]]","v":"emit_swim"},{"$f":"SUBSTITUTE(SUBSTITUTE(LOWER(Table1[[#This Row],[Type]]),\"decimal\", \"number\"), \"list\", \"array\")","v":"boolean"},{"$f":"IF(Table1[[#This Row],[Ctype]]=\"string\", CHAR(34) & Table1[[#This Row],[Default Value]] & CHAR(34), LOWER(Table1[[#This Row],[Default Value]]))","v":"true"},{"$f":"SUBSTITUTE(Table1[[#This Row],[Description]], CHAR(34), \"\\\" & CHAR(34))","v":"If true, the `swim` game event will be emitted when the entity moves through a liquid."},{"$f":"SUBSTITUTE(SUBSTITUTE(SUBSTITUTE(SUBSTITUTE(SUBSTITUTE(Template, \"$NAME$\", Table1[[#This Row],[Cname]]), \"$TYPE$\", Table1[[#This Row],[Ctype]]), \"$DESCRIPTION$\", Table1[[#This Row],[Cdescription]]), \"$VALUE$\",Table1[[#This Row],[Cdefault]]), \"$TITLE$\", SUBSTITUTE(Table1[[#This Row],[Name]],\"_\", \" \"))","v":"    \"emit_swim\": {\n      \"title\": \"emit swim\",\n      \"type\": \"boolean\",\n      \"default\": true,\n      \"description\": \"If true, the `swim` game event will be emitted when the entity moves through a liquid.\"\n    },"}]

{"sheet":"Sheet2","index":2,"n_rows":4,"n_cols":11,"rows_kept":4,"cut":false,"hidden":false,"merged":[]}
["Name","Default Value","Type","Description","Cname","Ctype","Cdefault","Cdescription","Json Schema"]
["emit_flap","Boolean",false,"If true, the `flap` game event will be emitted when the entity moves through air.",{"$f":"Table14[[#This Row],[Name]]","v":"emit_flap"},{"$f":"SUBSTITUTE(SUBSTITUTE(LOWER(Table14[[#This Row],[Type]]),\"decimal\", \"number\"), \"list\", \"array\")","v":"false"},{"$f":"IF(Table14[[#This Row],[Ctype]]=\"string\", CHAR(34) & Table14[[#This Row],[Default Value]] & CHAR(34), LOWER(Table14[[#This Row],[Default Value]]))","v":"boolean"},{"$f":"SUBSTITUTE(Table14[[#This Row],[Description]], CHAR(34), \"\\\" & CHAR(34))","v":"If true, the `flap` game event will be emitted when the entity moves through air."},{"$f":"SUBSTITUTE(SUBSTITUTE(SUBSTITUTE(SUBSTITUTE(SUBSTITUTE(Template, \"$NAME$\", Table14[[#This Row],[Cname]]), \"$TYPE$\", Table14[[#This Row],[Ctype]]), \"$DESCRIPTION$\", Table14[[#This Row],[Cdescription]]), \"$VALUE$\",Table14[[#This Row],[Cdefault]]), \"$TITLE$\", SUBSTITUTE(Table14[[#This Row],[Cname]],\"_\", \" \"))","v":"    \"emit_flap\": {\n      \"title\": \"emit flap\",\n      \"type\": \"false\",\n      \"default\": boolean,\n      \"description\": \"If true, the `flap` game event will be emitted when the entity moves through air.\"\n    },"},null,{"$f":"_xlfn.CONCAT(Table14[Json Schema])","v":"    \"emit_flap\": {\n      \"title\": \"emit flap\",\n      \"type\": \"false\",\n      \"default\": boolean,\n      \"description\": \"If true, the `flap` game event will be emitted when the entity moves through air.\"\n    },    \"emit_move\": {\n      \"title\": \"emit move\",\n      \"type\": \"true\",\n      \"default\": boolean,\n      \"description\": \"If true, the `entityMove` game event will be emitted when the entity moves on ground or through a solid.\"\n    },    \"emit_swim\": {\n      \"title\": \"emit swim\",\n      \"type\": \"true\",\n      \"default\": boolean,\n      \"description\": \"If true, the `swim` game event will be emitted when the entity moves through a liquid.\"\n    },"}]
["emit_move","Boolean",true,"If true, the `entityMove` game event will be emitted when the entity moves on ground or through a solid.",{"$f":"Table14[[#This Row],[Name]]","v":"emit_move"},{"$f":"SUBSTITUTE(SUBSTITUTE(LOWER(Table14[[#This Row],[Type]]),\"decimal\", \"number\"), \"list\", \"array\")","v":"true"},{"$f":"IF(Table14[[#This Row],[Ctype]]=\"string\", CHAR(34) & Table14[[#This Row],[Default Value]] & CHAR(34), LOWER(Table14[[#This Row],[Default Value]]))","v":"boolean"},{"$f":"SUBSTITUTE(Table14[[#This Row],[Description]], CHAR(34), \"\\\" & CHAR(34))","v":"If true, the `entityMove` game event will be emitted when the entity moves on ground or through a solid."},{"$f":"SUBSTITUTE(SUBSTITUTE(SUBSTITUTE(SUBSTITUTE(SUBSTITUTE(Template, \"$NAME$\", Table14[[#This Row],[Cname]]), \"$TYPE$\", Table14[[#This Row],[Ctype]]), \"$DESCRIPTION$\", Table14[[#This Row],[Cdescription]]), \"$VALUE$\",Table14[[#This Row],[Cdefault]]), \"$TITLE$\", SUBSTITUTE(Table14[[#This Row],[Cname]],\"_\", \" \"))","v":"    \"emit_move\": {\n      \"title\": \"emit move\",\n      \"type\": \"true\",\n      \"default\": boolean,\n      \"description\": \"If true, the `entityMove` game event will be emitted when the entity moves on ground or through a solid.\"\n    },"}]
["emit_swim","Boolean",true,"If true, the `swim` game event will be emitted when the entity moves through a liquid.",{"$f":"Table14[[#This Row],[Name]]","v":"emit_swim"},{"$f":"SUBSTITUTE(SUBSTITUTE(LOWER(Table14[[#This Row],[Type]]),\"decimal\", \"number\"), \"list\", \"array\")","v":"true"},{"$f":"IF(Table14[[#This Row],[Ctype]]=\"string\", CHAR(34) & Table14[[#This Row],[Default Value]] & CHAR(34), LOWER(Table14[[#This Row],[Default Value]]))","v":"boolean"},{"$f":"SUBSTITUTE(Table14[[#This Row],[Description]], CHAR(34), \"\\\" & CHAR(34))","v":"If true, the `swim` game event will be emitted when the entity moves through a liquid."},{"$f":"SUBSTITUTE(SUBSTITUTE(SUBSTITUTE(SUBSTITUTE(SUBSTITUTE(Template, \"$NAME$\", Table14[[#This Row],[Cname]]), \"$TYPE$\", Table14[[#This Row],[Ctype]]), \"$DESCRIPTION$\", Table14[[#This Row],[Cdescription]]), \"$VALUE$\",Table14[[#This Row],[Cdefault]]), \"$TITLE$\", SUBSTITUTE(Table14[[#This Row],[Cname]],\"_\", \" \"))","v":"    \"emit_swim\": {\n      \"title\": \"emit swim\",\n      \"type\": \"true\",\n      \"default\": boolean,\n      \"description\": \"If true, the `swim` game event will be emitted when the entity moves through a liquid.\"\n    },"}]

{"sheet":"Data","index":3,"n_rows":1,"n_cols":1,"rows_kept":1,"cut":false,"hidden":false,"merged":[]}
["    \"$NAME$\": {\n      \"title\": \"$TITLE$\",\n      \"type\": \"$TYPE$\",\n      \"default\": $VALUE$,\n      \"description\": \"$DESCRIPTION$\"\n    },"]